Cogmind - Beta 14 @@@ ROGUE MODE // 2024.08.17 @ 18:07:23 Player: Falseshadow Result: Core destroyed Performance ------------- Evolutions (4) 2000 Regions Visited (10) 2000 Robots Destroyed (107) 535 Value Destroyed (4337) 4337 Prototype IDs (29) 580 Alien Tech Used (0) 0 Bonus (2586) 2586 TOTAL SCORE: 12038 Bonus ------- High Alert Combat Kills 541 Follower Combat Kills 558 Entered Garrisons 400 Used RIF Installer 1000 Aligned with FarCom 300 Friendly Fire -213 Cogmind --------- Core Integrity 0/850 Matter 216/300 Energy 310/310 System Corruption 1% Temperature Critical (595) Movement Core (800) Ox15 Location -6/Garrison Parts ------- > --- POWER (1) -------- Reinforced Fission Core > --- PROPULSION (5) --- Cooled Airjet > --- UTILITY (6) ------ Large Storage Unit Improved Melee Analysis Suite Improved Melee Analysis Suite Improved Light Armor Plating Relay Coupler [NC] (7) Relay Coupler [Swarmer] (24) > --- WEAPON (3) ------- Power Maul (fused) > --- INVENTORY (15) --- Improved Deuterium Engine Actuator Array Transmission Jammer Improved Light Armor Plating Improved Light Armor Plating Medium Insulated Plating Relay Coupler [NC] (24) Relay Coupler [Grunt] (29) Relay Coupler [Specialist] (24) Faulty Precision Grenade Launcher Peak State ------------ > --- POWER ------------ Improved Deuterium Engine > --- PROPULSION ------- Airjet Aerolev Unit Gravmag System Cooled Airjet > --- UTILITY ---------- Large Storage Unit Melee Analysis Suite Actuator Array Improved Shield Generator Hacking Suite > --- WEAPON ----------- Remote Datajack Power Maul Longsword +1 > --- INVENTORY -------- Improved Deuterium Engine Improved Titanium Leg Improved Light Armor Plating Medium Insulated Plating Hacking Suite Relay Coupler [NC] Relay Coupler [NC] Relay Coupler [Swarmer] Relay Coupler [Grunt] Relay Coupler [Sentry] Relay Coupler [Specialist] Relay Coupler [Hunter] System Restoration Module Precision Grenade Launcher Katana [Rating: 55] Favorites ----------- Power Light Deuterium Engine Engine Light Deuterium Engine Power Core Reinforced Fission Core Propulsion Carbon-fiber Leg Treads Light Treads Leg Carbon-fiber Leg Hover Unit Gravmag System Utility Large Storage Unit Device Shield Generator Storage Large Storage Unit Processor Melee Analysis Suite Hackware Hacking Suite Protection Improved Light Armor Plating Weapon Longsword +1 Energy Cannon Plasma Cannon Ballistic Gun Heavy Assault Rifle Ballistic Cannon Battle Cannon Launcher Grenade Launcher Special Weapon Remote Datajack Impact Weapon Power Maul Slashing Weapon Longsword +1 Build | -11 -10 -10 -10 -9 -8 -8 -8 -7 -6 -6 ------- Run | Yrd Mat Min Exi Min Mat Gar Mat Fac Fac Gar Slots Evolved 8 | . . . . . 4 . . 2 2 . Power . | . . . . . . . . . . . Propulsion 3 | . . . . . 2 . . . 1 . Utility 4 | . . . . . 1 . . 2 1 . Weapon 1 | . . . . . 1 . . . . . Parts Attached 105 | 6 4 2 2 9 20 13 12 28 3 6 Power 15 | 1 . 1 . 1 5 1 2 3 . 1 Engine 14 | 1 . 1 . 1 5 1 2 3 . . Core 1 | . . . . . . . . . . 1 Reactor . | . . . . . . . . . . . Propulsion 37 | 2 . . . 2 6 4 8 11 . 4 Treads 6 | 2 . . . . . . 4 . . . Leg 22 | . . . . 2 6 4 4 3 . 3 Wheel . | . . . . . . . . . . . Hover 9 | . . . . . . . . 8 . 1 Flight . | . . . . . . . . . . . Utility 27 | 1 2 . . 1 5 4 . 10 3 1 Device 7 | . 1 . . . 1 . . 4 1 . Storage 2 | 1 1 . . . . . . . . . Processor 5 | . . . . . 2 . . 1 2 . Hackware 6 | . . . . . . 2 . 4 . . Protection 7 | . . . . 1 2 2 . 1 . 1 Artifact . | . . . . . . . . . . . Weapon 26 | 2 2 1 2 5 4 4 2 4 . . Energy Gun . | . . . . . . . . . . . Energy Cannon 2 | . . . . 2 . . . . . . Ballistic Gun 11 | 2 2 1 . . 3 2 1 . . . Ballistic Cannon 2 | . . . . 1 1 . . . . . Launcher 4 | . . . 1 1 . 2 . . . . Special Weapon 1 | . . . . . . . . 1 . . Impact Weapon 2 | . . . . . . . . 2 . . Slashing Weapon 4 | . . . 1 1 . . 1 1 . . Piercing Weapon . | . . . . . . . . . . . Special Melee Weapon . | . . . . . . . . . . . Unidentified Prototypes 4 | . . . . . 1 . . 3 . . Parts Lost 25 | . . . . 2 3 3 2 9 . 6 Power 2 | . . . . . . . . 2 . . Propulsion 13 | . . . . 1 3 1 . 3 . 5 Utility 4 | . . . . 1 . 1 . 1 . 1 Weapon 6 | . . . . . . 1 2 3 . . Highest Loss Streak 6 | . . . . 2 2 1 1 4 . 6 To Critical Strikes . | . . . . . . . . . . . Average Slot Usage (%) 95 | . 98 100 100 99 91 94 95 92 73 77 Engine 10 | . 14 14 14 14 8 9 9 6 6 . Treads 12 | . 28 28 28 24 . . 28 . . . Leg 13 | . . . . 3 30 32 7 8 . 14 Hover 4 | . . . . . . . . 19 20 9 Device 6 | . 12 14 14 12 4 . . 6 6 5 Storage 10 | . 14 14 14 14 9 9 9 7 6 6 Processor 5 | . . . . . 6 9 9 8 11 13 Hackware 4 | . . . . . . 5 9 13 14 13 Protection 1 | . . . . 1 5 3 . . . . Energy Cannon 1 | . . . . 5 5 . . . . . Ballistic Gun 10 | . 28 28 14 . 11 11 11 . . . Launcher 2 | . . . 6 8 . 4 . . . . Impact Weapon 1 | . . . . . . . . 5 6 6 Slashing Weapon 7 | . . . 6 12 9 9 11 8 . . Peak Build Rating 55 | 6 11 12 19 27 41 36 42 55 42 50 Average Rating 30 | 4 10 11 14 20 36 34 39 46 41 44 On Entrance 24 | . 6 11 12 18 27 36 34 41 37 42 Naked Turns . | . . . . . . . . . . . Heaviest Build 48 | 12 33 35 35 41 46 38 38 48 34 45 Greatest Support 80 | 40 40 40 40 40 60 51 80 64 25 53 Greatest Overweight (x) 4 | . . . . 1 1 1 1 4 1 . Average Overweight (x) . | . . . . . . . . . 1 . Largest Inventory Capacity 15 | 8 15 15 15 15 15 15 15 15 15 15 Average Capacity 14 | 6 9 15 15 15 15 15 15 15 15 15 Most Carried 15 | 5 10 15 15 15 15 15 15 15 15 12 Average Carried 12 | . 6 12 14 14 13 14 14 13 13 11 Final Capacity 15 | 8 15 15 15 15 15 15 15 15 15 15 Final Carried 15 | . 10 14 15 12 15 15 15 15 13 10 Class Distribution -------------------- 50% | Mutant 28% | Scavenger-Mutant 7% | Scavenger-Gladiator 5% | Bothacker-Gladiator 4% | Bothacker-Mutant 3% | Gladiator Dominant Class ---------------- Mutant | -10/Materials Mutant | -10/Mines Mutant | -10/Exiles Mutant | -9/Mines Scavenger-Mutant | -8/Materials Scavenger-Mutant | -8/Garrison Mutant | -8/Materials Scavenger-Gladiator | -7/Factory Mutant | -6/Factory Mutant | -6/Garrison Resources | -11 -10 -10 -10 -9 -8 -8 -8 -7 -6 -6 ----------- Run | Yrd Mat Min Exi Min Mat Gar Mat Fac Fac Gar Matter Collected 2248 | 224 325 110 . 155 534 260 198 372 . 70 Remotely . | . . . . . . . . . . . Salvage Created 4167 | . 487 251 . 248 1180 531 1037 326 . 107 Parts 238 | . 31 18 . 19 69 35 40 25 . 1 Haulers Intercepted 2 | . . . . . 2 . . . . . Recyclers Shooed . | . . . . . . . . . . . Parts Field Recycled . | . . . . . . . . . . . Retrieved Matter . | . . . . . . . . . . . Parts Self-Destructed . | . . . . . . . . . . . Prevented . | . . . . . . . . . . . Kills | -11 -10 -10 -10 -9 -8 -8 -8 -7 -6 -6 ------- Run | Yrd Mat Min Exi Min Mat Gar Mat Fac Fac Gar Combat Hostiles Destroyed 81 | . 11 7 . 10 19 14 14 6 . . Melee 35 | . . . . . 7 8 14 6 . . Guns 26 | . 11 7 . . 8 . . . . . Cannons 7 | . . . . 4 3 . . . . . AOE 12 | . . . . 6 . 6 . . . . Classes Destroyed 16 | . 4 1 . 2 5 1 2 1 . . Worker 1 | . . . . 1 . . . . . . Builder 2 | . . . . . 2 . . . . . Tunneler 3 | . . . . 2 . . . 1 . . Hauler 2 | . . . . . 2 . . . . . Recycler 6 | . . . . . 2 . 4 . . . Operator 5 | . 2 . . . 1 . 1 1 . . Watcher 6 | . 3 . . . 2 . 1 . . . Swarmer 19 | . 3 3 . 4 4 3 . 2 . . Cutter 2 | . . . . . . 2 . . . . Grunt 33 | . 8 2 . 6 9 4 4 . . . Brawler 1 | . . . . . . . 1 . . . Duelist 2 | . . . . . 1 . 1 . . . Sentry 15 | . . 2 . . 3 5 3 2 . . Specialist 2 | . . . . . . . 2 . . . Hunter 6 | . . . . . 2 . 3 1 . . Programmer 1 | . . . . . . . . 1 . . Thug 1 | . . . . . . 1 . . . . Best Kill Streak 7 | . 3 3 . 5 4 5 7 2 . . Combat Bots Only 5 | . 3 3 . 4 4 5 4 2 . . Max Kills in Single Turn 3 | . 1 1 . 3 2 1 1 1 . . Gunslinging 1 | . . . . . 1 . . . . . Exploded 2 | . . . . 2 . 1 . . . . Melee 1 | . . . . . 1 1 1 1 . . Uniques/NPCs Destroyed . | . . . . . . . . . . . Combat | -11 -10 -10 -10 -9 -8 -8 -8 -7 -6 -6 -------- Run | Yrd Mat Min Exi Min Mat Gar Mat Fac Fac Gar Hostile Shots Fired 559 | . 48 42 . 37 96 35 91 180 . 30 Missed 148 | . 17 8 . 10 22 10 20 59 . 2 Damage Taken 6483 | . 296 277 . 256 1078 609 1146 1139 . 1682 Core 1839 | . 73 40 . 56 152 169 166 234 . 949 Absorbed by Shields 305 | . 66 112 . 27 . 6 . 94 . . Redirected to Shielding 22 | . . . . 15 7 . . . . . Regen/Repaired (Parts) 47 | . . . . . 47 . . . . . Core Remaining (%) 52 | 100 . . . 32 . . 11 66 . . Volleys Fired 180 | . 50 15 . 16 55 14 14 16 . . Largest 2 | . 2 2 . 2 2 2 2 1 . . Hottest 119 | . 46 46 . 119 119 55 53 5 . . Shots Fired 317 | . 100 30 . 21 109 19 22 16 . . Gun 233 | . 100 30 . . 71 10 22 . . . Cannon 51 | . . . . 13 38 . . . . . Launcher 17 | . . . . 8 . 9 . . . . Special 16 | . . . . . . . . 16 . . Kinetic 239 | . 100 30 . 5 72 10 22 . . . Thermal 45 | . . . . 8 37 . . . . . Explosive 17 | . . . . 8 . 9 . . . . Electromagnetic . | . . . . . . . . . . . Robot Hit Streak 9 | . 6 7 . 6 5 8 7 9 . . Robot Miss Streak 4 | . 2 3 . 1 3 2 4 2 . . Penetration Max 1 | . . . . . 1 1 . . . . Secondary Targets 3 | . . 1 . . 2 . . . . . Max Gunslinging Chain 1 | . . 1 . . 1 . . . . . Shots Hit Robots 314 | . 57 20 . 15 88 31 52 34 . 17 Core Hits 136 | . 25 10 . 13 36 22 20 8 . 2 Critical Kills 2 | . . . . . 1 . . 1 . . Critical Parts Destroyed 1 | . . . . . . . . . . 1 Critical Strikes 11 | . . . . . 3 1 3 2 . 2 Meltdown 1 | . . . . . 1 . . . . . Smash 3 | . . . . . . . . 1 . 2 Sever 7 | . . . . . 2 1 3 1 . . Melee Attacks 181 | . . . . 3 21 61 45 34 . 17 Impact 26 | . . . . . . . . 9 . 17 Slashing 155 | . . . . 3 21 61 45 25 . . Piercing . | . . . . . . . . . . . Sneak Attacks 11 | . . . . 3 1 . 5 2 . . Combat Hostiles . | . . . . . . . . . . . Follow-up Attacks 4 | . . . . . . . 1 3 . . Damage Inflicted 10985 | . 808 310 . 1125 2520 1623 2298 1185 . 1116 Guns 2398 | . 803 310 . . 989 104 192 . . . Cannons 764 | . . . . 205 559 . . . . . Explosions 1179 | . . . . 655 . 524 . . . . Melee 6633 | . . . . 262 972 995 2106 1182 . 1116 Ramming 11 | . 5 . . 3 . . . 3 . . Kinetic 2432 | . 803 310 . 16 1007 104 192 . . . Thermal 918 | . . . . 377 541 . . . . . Explosive 991 | . . . . 467 . 524 . . . . Electromagnetic . | . . . . . . . . . . . Impact 1416 | . . . . . . . . 300 . 1116 Slashing 5217 | . . . . 262 972 995 2106 882 . . Piercing . | . . . . . . . . . . . Highest Corruption 3 | . . . . . 1 1 1 3 . 1 Average Corruption 1 | . . . . . 1 1 1 2 . 1 Corruption Purged 3 | . . . . . . . . 3 . . Corruption Blocked . | . . . . . . . . . . . Effects 24 | . . . . . 3 11 4 6 . . Message Errors 4 | . . . . . 1 2 . 1 . . Matter Fused 5 | . . . . . . 2 1 2 . . Heat Flow Errors 5 | . . . . . . 4 1 . . . Energy Discharges 2 | . . . . . 1 1 . . . . Parts Fused 1 | . . . . . . . . 1 . . Data Loss (minor) 4 | . . . . . . 2 1 1 . . Data Loss (major) 1 | . . . . . . . 1 . . . Alerts 1 | . . . . . . . . 1 . . Weapon Failures 1 | . . . . . 1 . . . . . Overload Shots . | . . . . . . . . . . . Overflow Damage 974 | . . . . 170 134 45 317 193 . 115 Projectiles . | . . . . . . . . . . . Explosions 93 | . . . . 48 . 45 . . . . Melee 881 | . . . . 122 134 . 317 193 . 115 Knockbacks 2 | . . . . 1 . . . 1 . . Impact 2 | . . . . 1 . . . 1 . . Kinetic . | . . . . . . . . . . . Secondary . | . . . . . . . . . . . Self-Inflicted Damage 166 | . . . . 10 . 155 . 1 . . Shots 2 | . . . . 1 . 1 . . . . Rammed 4 | . 2 . . 1 . . . 1 . . Targets Rammed 4 | . 2 . . 1 . . . 1 . . Kicked . | . . . . . . . . . . . Crushed . | . . . . . . . . . . . Highest Temperature 991 | . 18 2 . 343 21 250 164 . . 991 Average Temperature 154 | . 7 1 . 141 6 82 30 . . 644 Received Heat Transfer 3288 | . 140 70 . 62 468 303 234 199 . 1812 Effects 25 | . . . . 1 . 1 . . . 23 Shutdowns 4 | . . . . . . . . . . 4 Energy Bleed 3 | . . . . . . 1 . . . 2 Interference 5 | . . . . 1 . . . . . 4 Matter Decay 1 | . . . . . . . . . . 1 Damage (minor) 2 | . . . . . . . . . . 2 Damage (major) 6 | . . . . . . . . . . 6 Damage (core) 4 | . . . . . . . . . . 4 Siege Activations . | . . . . . . . . . . . Robots Corrupted 1 | . . . . . . . . . . 1 Combat Hostiles 1 | . . . . . . . . . . 1 Parts Fried . | . . . . . . . . . . . Impact Corruptions 8 | . . . . . . . . 3 . 5 Robots Melted 1 | . . . . . 1 . . . . . Combat Hostiles 1 | . . . . . 1 . . . . . Parts Melted 4 | . . . . 1 1 . . 2 . . Heat Transferred 1600 | . . . . 550 1050 . . . . . Parts Sabotaged . | . . . . . . . . . . . Parts Stolen . | . . . . . . . . . . . Parts Stripped . | . . . . . . . . . . . Power Chain Reactions . | . . . . . . . . . . . Alert | -11 -10 -10 -10 -9 -8 -8 -8 -7 -6 -6 ------- Run | Yrd Mat Min Exi Min Mat Gar Mat Fac Fac Gar Peak Influence 1458 | . 165 190 . 193 448 1458 1071 568 135 99 Initial 710 | . . . . . 74 293 710 487 135 94 Average 409 | . 51 159 . 58 232 963 874 375 135 72 Maximum Alert Level 4 | . . . . . 2 4 3 2 . . Low Security (%) 40 | 100 100 100 . 100 36 . . . 100 100 Level 1 24 | . . . . . 59 4 . 73 . . Level 2 10 | . . . . . 4 22 . 26 . . Level 3 16 | . . . . . . 34 100 . . . Level 4 7 | . . . . . . 38 . . . . Level 5 . | . . . . . . . . . . . High Security . | . . . . . . . . . . . Max Security . | . . . . . . . . . . . Squads Dispatched 14 | . 2 1 . 1 2 . 3 4 1 . Investigation 4 | . . . . 1 1 . . 1 1 . Extermination 2 | . . . . . . . . 2 . . Reinforcement 6 | . 2 . . . 1 . 2 1 . . Assault 2 | . . 1 . . . . 1 . . . Garrison . | . . . . . . . . . . . Intercept . | . . . . . . . . . . . Searches Triggered . | . . . . . . . . . . . Construction Impeded . | . . . . . . . . . . . Haulers Reinforced . | . . . . . . . . . . . Active Scanning Responses . | . . . . . . . . . . . Cargo Convoy Interrupts . | . . . . . . . . . . . Stealth | -11 -10 -10 -10 -9 -8 -8 -8 -7 -6 -6 --------- Run | Yrd Mat Min Exi Min Mat Gar Mat Fac Fac Gar Distress Signals 7 | . 2 . . . 1 . 2 2 . . Communications Jammed . | . . . . . . . . . . . Distress Signals . | . . . . . . . . . . . Times Spotted 139 | . 21 7 . 10 29 21 26 24 . 1 Peak Tracking Total 6 | . 3 3 . 4 4 4 6 4 . 1 Tactical Retreats 5 | . 1 . . . 1 . 1 2 . . Traps | -11 -10 -10 -10 -9 -8 -8 -8 -7 -6 -6 ------- Run | Yrd Mat Min Exi Min Mat Gar Mat Fac Fac Gar Traps Triggered 6 | . . . . . 2 2 . 2 . . Indirectly . | . . . . . . . . . . . Trap Hack Attempts . | . . . . . . . . . . . Triggered . | . . . . . . . . . . . Disarmed . | . . . . . . . . . . . Reprogrammed . | . . . . . . . . . . . Reused . | . . . . . . . . . . . Traps Extracted . | . . . . . . . . . . . Installed . | . . . . . . . . . . . Triggered 1 | . . . . . . 1 . . . . Machines | -11 -10 -10 -10 -9 -8 -8 -8 -7 -6 -6 ---------- Run | Yrd Mat Min Exi Min Mat Gar Mat Fac Fac Gar Machines Disabled 12 | . . 1 . 2 2 6 1 . . . Max in Single Turn 2 | . . 1 . 2 1 2 1 . . . Garrison Relay 4 | . . . . . . 4 . . . . Phase Generator 1 | . . . . . . 1 . . . . Machines Repaired . | . . . . . . . . . . . Machines Dismantled . | . . . . . . . . . . . Machines Sabotaged . | . . . . . . . . . . . Overloaded Fab Kills . | . . . . . . . . . . . Hacking | -11 -10 -10 -10 -9 -8 -8 -8 -7 -6 -6 --------- Run | Yrd Mat Min Exi Min Mat Gar Mat Fac Fac Gar Machines Accessed 32 | . 6 . 2 1 8 4 2 8 1 . Terminals 19 | . 6 . . . 5 4 1 3 . . Fabricators 3 | . . . . . . . . 3 . . Repair Stations 1 | . . . . . 1 . . . . . Recycling Units 2 | . . . . . . . . 2 . . Scanalyzers 2 | . . . . . 1 . 1 . . . Garrison Access 2 | . . . . . 1 . . . 1 . Total Hacks 66 | . 19 . 2 1 19 7 4 12 2 . Successful 34 | . 9 . 2 1 10 3 4 4 1 . Failed 32 | . 10 . . . 9 4 . 8 1 . Catastrophic 8 | . 2 . . . 1 1 . 3 1 . Database Lockouts . | . . . . . . . . . . . Manual 30 | . 16 . 1 . 11 . . 1 1 . Terminals 44 | . 19 . . . 12 7 2 4 . . Fabricators 4 | . . . . . . . . 4 . . Repair Stations 2 | . . . . . 2 . . . . . Recycling Units 4 | . . . . . . . . 4 . . Scanalyzers 6 | . . . . . 4 . 2 . . . Garrison Access 3 | . . . . . 1 . . . 2 . Terminal Hacks 16 | . 6 . 2 1 1 3 2 1 . . Record 1 | . . . 1 . . . . . . . Robot Analysis 4 | . 3 . . . . . 1 . . . Prototype ID Bank 1 | . 1 . . . . . . . . . Open Door 2 | . . . . 1 . 1 . . . . Open DSF 1 | . . . . . . . . 1 . . Branch Access Points 2 | . 1 . . . 1 . . . . . Emergency Access Points 1 | . . . . . . 1 . . . . Unreport Threat 1 | . 1 . . . . . . . . . Hauler Manifests 1 | . . . . . . . 1 . . . Garrison Registry 1 | . . . . . . 1 . . . . Derelict Proto ID Bank 1 | . . . 1 . . . . . . . Fabricator Hacks 2 | . . . . . . . . 2 . . Load Schematic 1 | . . . . . . . . 1 . . Build 1 | . . . . . . . . 1 . . Repair Station Hacks 2 | . . . . . 2 . . . . . Scan Component 1 | . . . . . 1 . . . . . Repair 1 | . . . . . 1 . . . . . Recycling Unit Hacks 1 | . . . . . . . . 1 . . Report Inventory 1 | . . . . . . . . 1 . . Scanalyzer 6 | . . . . . 4 . 2 . . . Insert Component 3 | . . . . . 2 . 1 . . . Analyze 3 | . . . . . 2 . 1 . . . Garrison Access Hacks 2 | . . . . . 1 . . . 1 . Unlock Access 2 | . . . . . 1 . . . 1 . Unauthorized Hacks 5 | . 3 . . . 2 . . . . . Terminals 5 | . 3 . . . 2 . . . . . Botnet 5 | . 3 . . . 2 . . . . . Fabricators . | . . . . . . . . . . . Repair Stations . | . . . . . . . . . . . Recycling Units . | . . . . . . . . . . . Scanalyzers . | . . . . . . . . . . . Garrison Access . | . . . . . . . . . . . Data Cores Recovered 1 | . . . . . . . . 1 . . Used 1 | . . . . . . . . 1 . . Hacking Detections 23 | . 5 . . . 5 3 2 7 1 . Full Trace Events 4 | . . . . . . 2 . 1 1 . Feedback Events 1 | . . . . . . . . . 1 . Corruption 1 | . . . . . . . . . 1 . Feedback Blocked . | . . . . . . . . . . . Robot Schematics Acquired . | . . . . . . . . . . . Robots Built . | . . . . . . . . . . . Authchips . | . . . . . . . . . . . Time . | . . . . . . . . . . . Total Robot Build Rating . | . . . . . . . . . . . Part Schematics Acquired 3 | . . . . . 2 . 1 . . . Parts Built 2 | . . . . . . . . 2 . . Authchips . | . . . . . . . . . . . Time 36 | . . . . . . . . 36 . . Total Part Build Rating 6 | . . . . . . . . 6 . . Parts Repaired 1 | . . . . . 1 . . . . . Time 38 | . . . . . 38 . . . . . Parts Recycled . | . . . . . . . . . . . Recycled Matter . | . . . . . . . . . . . Retrieved Matter . | . . . . . . . . . . . Retrieved Components . | . . . . . . . . . . . Parts Scanalyzed 3 | . . . . . 2 . 1 . . . Part Schematics Acquired 3 | . . . . . 2 . 1 . . . Parts Damaged . | . . . . . . . . . . . Bothacking | -11 -10 -10 -10 -9 -8 -8 -8 -7 -6 -6 ------------ Run | Yrd Mat Min Exi Min Mat Gar Mat Fac Fac Gar Used RIF Installer 2 | . . . . . . 2 . . . . Watcher Feeds 1 | . . . . . . 1 . . . . Robots Hacked 8 | . . . . . . . . 8 . . Non-combat 3 | . . . . . . . . 3 . . Combat 5 | . . . . . . . . 5 . . Robot Hacks Applied 9 | . . . . . . . . 9 . . parse_system 1 | . . . . . . . . 1 . . ignore_parts 1 | . . . . . . . . 1 . . disrupt_area 1 | . . . . . . . . 1 . . overwrite_iff 2 | . . . . . . . . 2 . . formatsys_low 2 | . . . . . . . . 2 . . formatsys_high 2 | . . . . . . . . 2 . . Relay Couplers Released 16 | . . . . . . 16 . . . . Machine Destruction 16 | . . . . . . 16 . . . . Attached 4 | . . . . . . . . 4 . . Fabnet Peak Effective % . | . . . . . . . . . . . Robots Rewired 3 | . . . . . . 3 . . . . Allies Hacked . | . . . . . . . . . . . Hacks Repelled . | . . . . . . . . . . . Allies | -11 -10 -10 -10 -9 -8 -8 -8 -7 -6 -6 -------- Run | Yrd Mat Min Exi Min Mat Gar Mat Fac Fac Gar Total Allies 10 | . . 1 . . . 3 . 6 . . Largest Group 4 | . . 1 1 1 . 3 1 4 2 1 Highest-Rated Group 90 | . . 31 31 31 . 90 39 74 30 21 Highest-Rated Ally 39 | . . 31 31 31 . 39 39 32 21 21 Total Orders 1 | . . . . . . . . 1 . . COLLECT 1 | . . . . . . . . 1 . . Ally Attacks 108 | . . . . 6 . 56 17 25 . 4 Total Damage 1842 | . . . . 84 . 863 205 563 . 127 Kills 19 | . . . . 1 . 10 2 6 . . Allies Corrupted . | . . . . . . . . . . . Allies Melted . | . . . . . . . . . . . Intel | -11 -10 -10 -10 -9 -8 -8 -8 -7 -6 -6 ------- Run | Yrd Mat Min Exi Min Mat Gar Mat Fac Fac Gar Robot Analysis Total 4 | . 3 . . . . . 1 . . . Derelict Logs Recovered 1 | . . . . 1 . . . . . . Drone Launches . | . . . . . . . . . . . Drone Recoveries . | . . . . . . . . . . . Exploration | -11 -10 -10 -10 -9 -8 -8 -8 -7 -6 -6 ------------- Run | Yrd Mat Min Exi Min Mat Gar Mat Fac Fac Gar Turns Passed 8470 | 60 1271 343 345 1067 1146 1622 758 1688 44 126 Spaces Moved 5267 | 43 676 178 214 538 612 1162 388 1375 37 44 Core 18 | 18 . . . . . . . . . . Treads 1829 | 25 676 178 214 486 . . 250 . . . Legs 2337 | . . . . 52 612 1162 138 329 . 44 Wheels . | . . . . . . . . . . . Hover 1083 | . . . . . . . . 1046 37 . Flight . | . . . . . . . . . . . Fastest Speed 43 | 50 160 160 160 160 120 120 110 43 105 123 Average Speed 135 | 113 160 160 160 184 136 120 149 108 105 123 Slowest Speed 320 | 160 160 160 160 240 190 190 250 320 105 123 Overloaded Moves . | . . . . . . . . . . . Propulsion Burnouts . | . . . . . . . . . . . Robots Hopped . | . . . . . . . . . . . Cave-ins Triggered . | . . . . . . . . . . . Exploration Rate (%) 48 | 4 94 52 61 99 47 86 36 36 2 12 Regions Visited 10 Branch Regions 3 Pre-discovered Areas 1 | . . . 1 . . . . . . . Known Exits Taken 3 | . 1 . . . 1 . . . 1 . Unknown Exits Taken 6 | 1 . 1 1 1 . . 1 1 . . Scrap Searched 4 | . . 1 . 3 . . . . . . Spaces Dug 26 | . . . . . . 23 1 2 . . Terrain Destroyed 221 | . . . . 69 15 134 1 2 . . Melee 26 | . . . . . . 23 1 2 . . Projectile 18 | . . . . 3 15 . . . . . AOE 177 | . . . . 66 . 111 . . . . Terrain Rammed . | . . . . . . . . . . . Walls Destroyed . | . . . . . . . . . . . Machines Disabled . | . . . . . . . . . . . Actions | -11 -10 -10 -10 -9 -8 -8 -8 -7 -6 -6 --------- Run | Yrd Mat Min Exi Min Mat Gar Mat Fac Fac Gar Total 6087 | 54 772 206 216 589 797 1307 502 1521 41 82 Wait 179 | . 23 4 . 9 51 17 28 33 . 14 Move 5258 | 42 675 177 213 537 612 1160 387 1374 37 44 Hop . | . . . . . . . . . . . Pick Up 91 | 6 14 6 1 6 21 9 6 20 1 1 Fast Attach 19 | . . . . 1 3 2 6 7 . . Attach 36 | 6 1 . . 2 9 3 . 10 1 4 Detach 3 | . . . . . 2 . . 1 . . Swap 51 | . 3 2 2 6 8 8 6 12 2 2 Drop 63 | . 4 2 . 8 15 7 12 15 . . Fire 180 | . 50 15 . 16 55 14 14 16 . . Melee 176 | . . . . 3 21 61 43 31 . 17 Ram 1 | . . . . . . . . 1 . . Kick . | . . . . . . . . . . . Crush 3 | . 2 . . 1 . . . . . . Escape Stasis 10 | . . . . . . 10 . . . . Rewire 17 | . . . . . . 16 . 1 . . Trap . | . . . . . . . . . . . Miscellaneous . | . . . . . . . . . . . Route ------- -11/Scrapyard -10/Materials (discovered 4 exits: [*Mat x2] / *Min x2) -10/Mines (discovered 2 exits: [*Mat] / *Exi) -10/Exiles -9/Mines (discovered 2 exits: *Mat x2) -8/Materials (discovered 2 exits: *Fac / Gar) -8/Garrison (discovered 3 exits: *Mat x3) -8/Materials -7/Factory (discovered 2 exits: *Fac x2) -6/Factory -6/Garrison History --------- Turn | Location | Event 3 | -11/Scrapyard | Discovered new exit (range 16) 61 | -11/Scrapyard | Entered Materials 305 | -10/Materials | Build established: Mutant 325 | -10/Materials | Discovered new exit (range 15) 623 | -10/Materials | Discovered new exit (range 12) 732 | -10/Materials | Identified exit to Mines 1090 | -10/Materials | Discovered new exit (range 16) 1332 | -10/Materials | Entered Mines 1559 | -10/Mines | Discovered new exit (range 6) 1560 | -10/Mines | Met a Derelict testing a Signal Generator 1667 | -10/Mines | Deemed a non-threat by the Exiles lab entrance 1668 | -10/Mines | Discovered new exit (range 5) 1675 | -10/Mines | Entered Exiles 1675 | -10/Exiles | Accompanied by 1 ally 1714 | -10/Exiles | Met 8R-AWN 1743 | -10/Exiles | Met EX-HEX 1787 | -10/Exiles | Met EX-BIN 1811 | -10/Exiles | Aligned with FarCom system 1813 | -10/Exiles | Given EX-Vault access code 1850 | -10/Exiles | Opened EX-Vault 1858 | -10/Exiles | Found Longsword +1 1894 | -10/Exiles | Warned to stay clear of 0b10 Research branches 1939 | -10/Exiles | Met EX-DEC 1958 | -10/Exiles | Learned location of Zion (-7) 2001 | -10/Exiles | Discovered new exit (range 14) 2020 | -10/Exiles | Left Exiles lab with Longsword +1 2020 | -10/Exiles | Entered Mines 2020 | -9/Mines | Accompanied by 1 ally 2043 | -9/Mines | Found a hidden stash of uninstalled traps 2230 | -9/Mines | Learned Materials machine intel 2251 | -9/Mines | Discovered new exit (range 7) 2327 | -9/Mines | A weapon hastily lodged in a ceiling crevice suddenly fell to the ground 2448 | -9/Mines | Met a Derelict shopkeep closing up shop 2587 | -9/Mines | Discovered new exit (range 9) 2970 | -9/Mines | Core integrity fell below 50% 3087 | -9/Mines | Entered Materials 3087 | -8/Materials | Evolved 4 slots: Propulsion x2, Utility x1, Weapon x1 3088 | -8/Materials | Loaded intel: 51 machine locations 3547 | -8/Materials | Build established: Scavenger-Mutant 3734 | -8/Materials | Discovered new exit (range 10) 4074 | -8/Materials | Repaired Lgt. Deuterium Engine 4233 | -8/Materials | Identified exit to Garrison 4233 | -8/Materials | Entered Garrison 4367 | -8/Garrison | Triggered checkpoint 4486 | -8/Garrison | Triggered checkpoint 4640 | -8/Garrison | Discovered new exit (range 10) 4663 | -8/Garrison | Triggered checkpoint 4813 | -8/Garrison | Triggered checkpoint 4881 | -8/Garrison | Discovered new exit (range 10) 4909 | -8/Garrison | Triggered checkpoint 4923 | -8/Garrison | Garrison Relay disabled 5167 | -8/Garrison | Triggered checkpoint 5285 | -8/Garrison | Discovered new exit (range 5) 5350 | -8/Garrison | Installed Relay Interface Framework 5385 | -8/Garrison | Phase Generator disabled 5386 | -8/Garrison | Core integrity fell below 50% 5428 | -8/Garrison | Expanded RIF knowledge: Watcher Feeds 5482 | -8/Garrison | Garrison Relay disabled 5494 | -8/Garrison | Discovered new exit (range 60) 5494 | -8/Garrison | Discovered new exit (range 24) 5494 | -8/Garrison | Discovered new exit (range 30) 5608 | -8/Garrison | Garrison Relay disabled 5855 | -8/Garrison | Entered Materials 5855 | -8/Materials | Accompanied by 1 ally 6168 | -8/Materials | Build established: Mutant 6255 | -8/Materials | First assault squad dispatched 6420 | -8/Materials | Core integrity fell below 20% 6600 | -8/Materials | Discovered new exit (range 8) 6613 | -8/Materials | Entered Factory 6613 | -7/Factory | Evolved 2 slots: Utility x2 6719 | -7/Factory | Build established: Scavenger-Gladiator 6779 | -7/Factory | Discovered new exit (range 4) 7361 | -7/Factory | Build established: Gladiator 7676 | -7/Factory | Build established: Bothacker-Gladiator 7855 | -7/Factory | Lost 4 parts (1p1n1u1w) 7861 | -7/Factory | Lost 3 allies 8019 | -7/Factory | Discovered new exit (range 4) 8107 | -7/Factory | Build established: Bothacker-Mutant 8179 | -7/Factory | Fabricated Imp. Light Armor Plating (x2) 8301 | -7/Factory | Entered another Factory area 8301 | -6/Factory | Accompanied by 2 allies 8301 | -6/Factory | Evolved 2 slots: Propulsion x1, Utility x1 8345 | -6/Factory | Identified exit to Garrison 8345 | -6/Factory | Entered Garrison 8345 | -6/Garrison | Accompanied by 1 ally 8355 | -6/Garrison | Spotted B-90 Cyclops 8449 | -6/Garrison | Core integrity fell below 50% 8455 | -6/Garrison | Core integrity fell below 20% 8472 | -6/Garrison | Core destroyed Last Messages --------------- Overheating: Matter decay (-69). Overheating: Lrg. Storage Unit damaged (-136). Overheating: Imp. Melee Analysis Suite damaged (-10). Transmission Jammer destroyed. B-90 Cyclops activates siege mode. Overheating: Core damaged (-153). Power failure, Rnf. Fission Core shutdown. B-90 Cyclops IFF system glitched. Overheating: Imp. Light Armor Plating damaged (-82). Overheating: Rnf. Fission Core damaged (-37). B-90 Cyclops misfires. B-90 Cyclops IFF system glitched. Machine disabled. Critical hit (Meltdown: +370). Power failure, Rnf. Fission Core shutdown. Overheating: Power Maul damaged (-3). Overheating: Relay Coupler [Swarmer] damaged (-3). Overheating: Imp. Melee Analysis Suite damaged (-4). Overheating: Cld. Airjet damaged (-14). Overheating: Core damaged (-119). Map ----- +----------------------------------------------------+ | ????????????????????????????????????? | | ????????????????????????????????????? | | ????????????????????????????????????? | | ????????????????????????????????????? | | ????????????????????????????????????? | | ????????????????????????????????????? | | ????????????????????????????????????? | | ????????????????????????????????????? | | ????????????????????????????????????? | | ??###############???????????????????? | | ??#""""" """% "##??????????????????? | | ??#" """ """! ""###????????????????? | | ??#"" ############## #? | | ??#"" #? | | ??;" #? | | ??# ! ##### ###### #? | | ??# #???# #????????? | | ??#"" ! #???#####????????? | | ??#" % #????????????????? | | ??#"" ! #????????????????? | | ??#BB #????????????????? | | ??#BB #????????????????? | | ??#"" #????????????????? | | ??#"" = #????????????????? | | ??#"" #????????????????? | | ??#" """BB""@BB""###????????????????? | | ??#"""""BB"" BB"##??????????????????? | | ??#########;#####???????????????????? | | ??????????##????????????????????????? | | ????????????????????????????????????? | | ????????????????????????????????????? | | ????????????????????????????????????? | | ????????????????????????????????????? | | ????????????????????????????????????? | | ????????????????????????????????????? | | ????????????????????????????????????? | | | | | | | | | | | | | | | | | | | | | | | | | | | | | +----------------------------------------------------+ Best States ------------- Heat Dissipation 53 Energy Generation 19 Energy Capacity 310 Matter Stores 300 Matter Capacity 300 Sight Range 16 Terrain Scan Density 10 Jamming Range 12 Armor Coverage 150 Propulsion Shielding 33 Evasion (%) 56 Melee Accuracy 12 Recoil Reduction 4 Salvage Targeting 2 Offensive Hacking 10 Relay Coupler Types 2 Relay Coupler Value 38 Item Schematics ----------------- Imp. Light Armor Plating | -8/Materials | Scanalyzed Carbon-fiber Leg | -8/Materials | Scanalyzed Arm. Treads | -8/Materials | Scanalyzed Robot Schematics ------------------ None Fabricated ------------ Imp. Light Armor Plating | x2 | -7/Factory Alien Tech Used ----------------- None Achievements -------------- Dramatic Entrance Challenges ------------ None Game ------ Seed FluxAerolevProtection Manual? 0 Play Time 01:07:52 Cumulative 67.7 hours Start 2024.08.17 @ 16:50:09 End 2024.08.17 @ 18:07:23 Sessions 1 Manual Loads 0 Difficulty Rogue Special Mode None Game No. 90 Rogue 90 Adventurer 0 Explorer 0 Win Type - Total 2 Types 2/0/0/0/0/0/0/0/0 Lore% 35 Gallery% 51 Achievement% 39 Wizard Run 0 Options --------- Layout 0 ASCII 0 Keyboard 0 Movement Mouse Keybinds 0 Fullscreen 2 Font 18/SmallcapsGlow Map View 76x50 Zoom Use 0% Tactical HUD 0 Map Filters NONE Filters NONE Steam 1 RUN: 2fc341c8-bed8-47d8-9e22-fbd2896e4584